[Event "Veteran-SM 65+ 2025"]
[Site "Uppsala, Sweden"]
[Date "2025.07.03"]
[Round "6.4"]
[White "Dolata, Henryk"]
[Black "Green, Per"]
[Result "1-0"]
[TimeControl "90 min for 40 move + 30 min with an increment of 30 sec starting move 1"]
[WhiteFideId "1709046"]
[BlackFideId "1703811"]
[WhiteElo "1958"]
[BlackElo "1954"]

1. e4 {[%clk 01:30:53]} {[%emt 00:00:03]} c5 {[%clk 01:30:19]} {[%emt
00:00:34]} 2. c3 {[%clk 01:31:19]} {[%emt 00:00:12]} d5 {[%clk 01:30:31]}
{[%emt 00:00:18]} 3. exd5 {[%clk 01:31:36]} {[%emt 00:00:13]} Qxd5 {[%clk
01:30:54]} {[%emt 00:00:08]} 4. d4 {[%clk 01:31:55]} {[%emt 00:00:10]} Nf6
{[%clk 01:31:19]} {[%emt 00:00:06]} 5. Nf3 {[%clk 01:32:04]} {[%emt 00:00:20]}
e6 {[%clk 01:31:37]} {[%emt 00:00:11]} 6. Bd3 {[%clk 01:28:12]} {[%emt
00:04:23]} Be7 {[%clk 01:31:17]} {[%emt 00:00:50]} 7. O-O {[%clk 01:27:22]}
{[%emt 00:01:21]} O-O {[%clk 01:31:23]} {[%emt 00:00:23]} 8. Qe2 {[%clk
01:26:47]} {[%emt 00:01:05]} Nc6 {[%clk 01:29:52]} {[%emt 00:02:01]} 9. dxc5
{[%clk 01:20:47]} {[%emt 00:06:31]} Qxc5 {[%clk 01:24:38]} {[%emt 00:05:43]} 10.
Nbd2 {[%clk 01:16:57]} {[%emt 00:04:20]} Rd8 {[%clk 01:18:31]} {[%emt
00:06:37]} 11. Nb3 {[%clk 01:05:38]} {[%emt 00:11:49]} Qh5 {[%clk 01:17:34]}
{[%emt 00:01:28]} 12. Bf4 {[%clk 00:57:09]} {[%emt 00:08:58]} b6 {[%clk
01:06:23]} {[%emt 00:11:40]} 13. Rad1 {[%clk 00:54:30]} {[%emt 00:03:10]} Bb7
{[%clk 01:05:39]} {[%emt 00:01:14]} 14. Ba6 {[%clk 00:52:12]} {[%emt 00:02:49]}
Bxa6 {[%clk 01:01:43]} {[%emt 00:04:26]} 15. Qxa6 {[%clk 00:52:39]} {[%emt
00:00:02]} Nd5 {[%clk 00:59:13]} {[%emt 00:03:00]} 16. Bc1 {[%clk 00:49:08]}
{[%emt 00:04:01]} Bf6 {[%clk 00:53:51]} {[%emt 00:05:52]} 17. Rd3 {[%clk
00:42:10]} {[%emt 00:07:28]} Rdc8 {[%clk 00:38:34]} {[%emt 00:15:46]} 18. Rfd1
{[%clk 00:37:06]} {[%emt 00:05:35]} Ne5 {[%clk 00:38:11]} {[%emt 00:00:53]} 19.
Nxe5 {[%clk 00:36:55]} {[%emt 00:00:41]} Bxe5 {[%clk 00:38:24]} {[%emt
00:00:16]} 20. f4 {[%clk 00:27:57]} {[%emt 00:09:29]} Bc7 {[%clk 00:35:01]}
{[%emt 00:03:53]} 21. a3 {[%clk 00:22:46]} {[%emt 00:05:42]} h6 {[%clk
00:30:40]} {[%emt 00:04:50]} 22. g3 {[%clk 00:21:56]} {[%emt 00:01:19]} Qg4
{[%clk 00:28:17]} {[%emt 00:02:53]} 23. Qa4 {[%clk 00:20:50]} {[%emt 00:01:37]}
b5 {[%clk 00:27:28]} {[%emt 00:01:19]} 24. Qe4 {[%clk 00:20:21]} {[%emt
00:00:59]} Bb6+ {[%clk 00:25:56]} {[%emt 00:02:03]} 25. Kg2 {[%clk 00:20:22]}
{[%emt 00:00:27]} Rc4 {[%clk 00:24:06]} {[%emt 00:02:20]} 26. Nd4 {[%clk
00:19:18]} {[%emt 00:01:35]} Rac8 {[%clk 00:19:24]} {[%emt 00:05:12]} 27. h3
{[%clk 00:16:55]} {[%emt 00:02:52]} Qh5 {[%clk 00:19:06]} {[%emt 00:00:48]} 28.
g4 {[%clk 00:14:31]} {[%emt 00:02:55]} Qh4 {[%clk 00:18:50]} {[%emt 00:00:46]}
29. Qe2 {[%clk 00:12:40]} {[%emt 00:02:21]} a6 {[%clk 00:17:18]} {[%emt
00:02:02]} 30. Nxe6 {[%clk 00:11:22]} {[%emt 00:01:47]} Qf6 {[%clk 00:17:12]}
{[%emt 00:00:37]} 31. Rxd5 {[%clk 00:10:41]} {[%emt 00:01:11]} fxe6 {[%clk
00:17:40]} {[%emt 00:00:02]} 32. Rd6 {[%clk 00:10:06]} {[%emt 00:01:05]} R4c6
{[%clk 00:17:41]} {[%emt 00:00:28]} 33. Qe4 {[%emt 00:10:33]} Qh4 {[%emt
00:00:20]} 34. Qe2 {[%clk 00:08:13]} 1-0

[Event "Veteran-SM 65+ 2025"]
[Site "Uppsala, Sweden"]
[Date "2025.07.03"]
[Round "6.5"]
[White "Johansson, Jan"]
[Black "Vrabec, Josip"]
[Result "1-0"]
[TimeControl "90 min for 40 move + 30 min with an increment of 30 sec starting move 1"]
[WhiteTitle "IM"]
[WhiteFideId "1700103"]
[BlackFideId "1714953"]
[WhiteElo "2258"]
[BlackElo "1908"]

1. d4 {[%clk 01:30:18]} {[%emt 00:00:41]} Nf6 {[%clk 01:30:58]} {[%emt
00:00:03]} 2. Nf3 {[%clk 01:30:40]} {[%emt 00:00:07]} g6 {[%clk 01:31:19]}
{[%emt 00:00:10]} 3. c4 {[%clk 01:30:56]} {[%emt 00:00:14]} Bg7 {[%clk
01:31:44]} {[%emt 00:00:05]} 4. Nc3 {[%clk 01:31:17]} {[%emt 00:00:09]} O-O
{[%clk 01:32:07]} {[%emt 00:00:07]} 5. Bg5 {[%clk 01:31:29]} {[%emt 00:00:18]}
d6 {[%clk 01:31:40]} {[%emt 00:00:57]} 6. e3 {[%clk 01:30:16]} {[%emt
00:01:43]} Nbd7 {[%clk 01:28:16]} {[%emt 00:03:54]} 7. h3 {[%clk 01:25:15]}
{[%emt 00:05:31]} c6 {[%clk 01:28:00]} {[%emt 00:00:46]} 8. Be2 {[%clk
01:25:31]} {[%emt 00:00:14]} e5 {[%clk 01:27:44]} {[%emt 00:00:46]} 9. O-O
{[%clk 01:24:43]} {[%emt 00:01:18]} h6 {[%clk 01:24:30]} {[%emt 00:03:44]} 10.
Bh4 {[%clk 01:21:10]} {[%emt 00:04:03]} g5 {[%clk 01:24:26]} {[%emt 00:00:33]}
11. Bg3 {[%clk 01:21:35]} {[%emt 00:00:06]} Qe7 {[%clk 01:20:16]} {[%emt
00:04:40]} 12. Bh2 {[%clk 01:20:26]} {[%emt 00:01:38]} Nh7 {[%clk 01:17:33]}
{[%emt 00:03:14]} 13. e4 {[%clk 01:10:36]} {[%emt 00:10:20]} Nb6 {[%clk
01:10:52]} {[%emt 00:07:09]} 14. a4 {[%clk 00:55:41]} {[%emt 00:15:26]} g4
{[%clk 01:08:34]} {[%emt 00:02:48]} 15. hxg4 {[%clk 00:51:38]} {[%emt
00:04:33]} Bxg4 {[%clk 01:08:10]} {[%emt 00:00:55]} 16. dxe5 {[%clk 00:52:01]}
{[%emt 00:00:07]} dxe5 {[%clk 01:03:47]} {[%emt 00:04:53]} 17. Nd2 {[%clk
00:52:15]} {[%emt 00:00:15]} Be6 {[%clk 00:57:33]} {[%emt 00:06:44]} 18. a5
{[%clk 00:35:31]} {[%emt 00:17:15]} Nd7 {[%clk 00:55:07]} {[%emt 00:02:55]} 19.
Qc2 {[%clk 00:32:35]} {[%emt 00:03:26]} Ng5 {[%clk 00:51:20]} {[%emt 00:04:18]}
20. Nd1 {[%clk 00:27:58]} {[%emt 00:05:06]} Kh8 {[%clk 00:49:38]} {[%emt
00:02:11]} 21. Ne3 {[%clk 00:27:59]} {[%emt 00:00:30]} Rg8 {[%clk 00:49:18]}
{[%emt 00:00:50]} 22. Bg4 {[%clk 00:26:25]} {[%emt 00:02:03]} Nf8 {[%clk
00:36:47]} {[%emt 00:13:01]} 23. Rfe1 {[%clk 00:22:06]} {[%emt 00:04:49]} Ng6
{[%clk 00:34:28]} {[%emt 00:02:48]} 24. Nf5 {[%clk 00:22:18]} {[%emt 00:00:20]}
Qf6 {[%clk 00:31:51]} {[%emt 00:03:06]} 25. Nf1 {[%clk 00:18:14]} {[%emt
00:04:35]} Rad8 {[%clk 00:29:09]} {[%emt 00:03:13]} 26. Rad1 {[%clk 00:13:57]}
{[%emt 00:04:46]} Rxd1 {[%clk 00:27:45]} {[%emt 00:01:54]} 27. Rxd1 {[%clk
00:14:12]} {[%emt 00:00:15]} Nf4 {[%clk 00:27:12]} {[%emt 00:01:02]} 28. N1g3
{[%clk 00:07:51]} {[%emt 00:06:51]} Rd8 {[%clk 00:23:17]} {[%emt 00:04:25]} 29.
Ne3 {[%clk 00:06:36]} {[%emt 00:01:45]} Rxd1+ {[%clk 00:20:50]} {[%emt
00:02:57]} 30. Qxd1 {[%clk 00:06:51]} {[%emt 00:00:16]} h5 {[%clk 00:17:34]}
{[%emt 00:03:46]} 31. Bf5 {[%clk 00:06:56]} {[%emt 00:00:24]} h4 {[%clk
00:11:28]} {[%emt 00:06:36]} 32. Nh5 {[%clk 00:06:00]} {[%emt 00:01:26]} Nxh5
{[%clk 00:09:36]} {[%emt 00:02:22]} 33. Qxh5+ {[%clk 00:06:19]} {[%emt
00:00:11]} Qh6 {[%clk 00:08:59]} {[%emt 00:01:08]} 34. Qxh6+ {[%clk 00:06:00]}
{[%emt 00:00:49]} Bxh6 {[%clk 00:09:27]} {[%emt 00:00:02]} 35. Bxe5+ {[%clk
00:06:14]} {[%emt 00:00:16]} Bg7 {[%clk 00:09:09]} {[%emt 00:00:48]} 36. Bxg7+
{[%clk 00:06:26]} {[%emt 00:00:18]} Kxg7 {[%clk 00:08:51]} {[%emt 00:00:01]} 37.
f4 {[%clk 00:05:52]} {[%emt 00:01:50]} Nh7 {[%clk 00:09:02]} {[%emt 00:00:18]}
38. e5 {[%clk 00:05:03]} {[%emt 00:01:20]} Nf8 {[%clk 00:09:17]} {[%emt
00:00:15]} 39. Kf2 {[%clk 00:04:39]} {[%emt 00:00:55]} Ng6 {[%clk 00:08:40]}
{[%emt 00:01:06]} 40. Kf3 {[%clk 00:04:55]} {[%emt 00:00:14]} Ne7 {[%clk
00:09:00]} {[%emt 00:00:11]} 41. Be4 {[%clk 00:05:02]} {[%emt 00:00:23]} f5
{[%clk 00:07:49]} {[%emt 00:01:40]} 42. Bd3 {[%clk 00:29:58]} {[%emt 00:05:34]}
Kf7 {[%clk 00:37:58]} {[%emt 00:00:22]} 43. b4 {[%clk 00:26:27]} {[%emt
00:04:01]} Ke8 {[%clk 00:37:52]} {[%emt 00:00:35]} 44. Kf2 {[%clk 00:25:17]}
{[%emt 00:01:39]} Kf7 {[%clk 00:36:52]} {[%emt 00:01:30]} 45. Nc2 {[%clk
00:19:14]} {[%emt 00:06:35]} b6 {[%clk 00:35:45]} {[%emt 00:01:37]} 46. a6
{[%clk 00:14:09]} {[%emt 00:05:34]} Bc8 {[%clk 00:34:40]} {[%emt 00:01:35]} 47.
b5 {[%clk 00:10:54]} {[%emt 00:03:46]} cxb5 {[%clk 00:33:26]} {[%emt 00:01:43]}
48. cxb5 {[%clk 00:11:18]} {[%emt 00:00:06]} Kg6 {[%clk 00:26:53]} {[%emt
00:07:02]} 49. Nd4 {[%clk 00:09:41]} {[%emt 00:02:08]} Bd7 {[%clk 00:26:27]}
{[%emt 00:00:56]} 50. Bc4 {[%clk 00:09:59]} {[%emt 00:00:12]} Kg7 {[%clk
00:23:18]} {[%emt 00:03:38]} 51. Nf3 {[%clk 00:04:51]} {[%emt 00:05:38]} Ng6
{[%clk 00:22:59]} {[%emt 00:00:49]} 52. Ke3 {[%clk 00:05:05]} {[%emt 00:00:16]}
Kf8 {[%clk 00:20:40]} {[%emt 00:02:49]} 53. Nd4 {[%clk 00:04:14]} {[%emt
00:01:21]} Ne7 {[%clk 00:20:51]} {[%emt 00:00:20]} 54. Kf3 {[%clk 00:01:02]}
{[%emt 00:03:42]} Kg7 {[%clk 00:20:35]} {[%emt 00:00:46]} 55. Be6 {[%clk
00:01:09]} {[%emt 00:00:23]} Be8 {[%clk 00:17:57]} {[%emt 00:03:09]} 56. Bxf5
{[%clk 00:01:24]} {[%emt 00:00:14]} Nd5 {[%clk 00:16:09]} {[%emt 00:02:17]} 57.
Be4 {[%clk 00:00:43]} {[%emt 00:01:12]} Bh5+ {[%clk 00:13:10]} {[%emt
00:03:28]} 58. g4 {[%clk 00:01:06]} {[%emt 00:00:08]} hxg3+ {[%clk 00:12:28]}
{[%emt 00:01:12]} 59. Kxg3 {[%clk 00:01:30]} {[%emt 00:00:06]} Nc3 {[%clk
00:10:16]} {[%emt 00:02:42]} 60. Bd3 {[%clk 00:01:53]} {[%emt 00:00:06]} Be8
{[%clk 00:10:27]} {[%emt 00:00:20]} 61. f5 {[%clk 00:02:10]} {[%emt 00:00:13]}
Kf7 {[%clk 00:10:12]} {[%emt 00:00:45]} 62. Bc4+ {[%clk 00:02:02]} {[%emt
00:00:38]} Kf8 {[%clk 00:09:58]} {[%emt 00:00:44]} 63. Kf4 {[%clk 00:02:12]}
{[%emt 00:00:19]} Na4 {[%clk 00:10:08]} {[%emt 00:00:21]} 64. Nc6 {[%clk
00:02:04]} {[%emt 00:00:38]} Bxc6 {[%clk 00:08:21]} {[%emt 00:02:18]} 65. bxc6
{[%clk 00:02:28]} {[%emt 00:00:05]} Ke8 {[%clk 00:08:41]} {[%emt 00:00:09]} 66.
f6 {[%clk 00:02:49]} {[%emt 00:00:09]} 1-0

[Event "Veteran-SM 65+ 2025"]
[Site "Uppsala, Sweden"]
[Date "2025.07.03"]
[Round "6.6"]
[White "Wedin, Svante"]
[Black "Andersson, Anders"]
[Result "0-1"]
[TimeControl "90 min for 40 move + 30 min with an increment of 30 sec starting move 1"]
[WhiteFideId "1711989"]
[BlackFideId "1738259"]
[WhiteElo "1864"]
[BlackElo "1991"]

1. e4 {[%clk 01:30:57]} {[%emt 00:00:02]} c5 {[%clk 01:30:49]} {[%emt
00:00:11]} 2. Nf3 {[%clk 01:31:22]} {[%emt 00:00:06]} e6 {[%clk 01:31:05]}
{[%emt 00:00:14]} 3. d4 {[%clk 01:31:47]} {[%emt 00:00:06]} cxd4 {[%clk
01:31:27]} {[%emt 00:00:07]} 4. Nxd4 {[%clk 01:32:14]} {[%emt 00:00:03]} a6
{[%clk 01:30:50]} {[%emt 00:01:07]} 5. Bd3 {[%clk 01:30:48]} {[%emt 00:01:56]}
Nf6 {[%clk 01:30:25]} {[%emt 00:00:54]} 6. O-O {[%clk 01:30:49]} {[%emt
00:00:30]} d6 {[%clk 01:29:44]} {[%emt 00:01:11]} 7. Nc3 {[%clk 01:26:19]}
{[%emt 00:05:00]} Nc6 {[%clk 01:27:36]} {[%emt 00:02:37]} 8. Nxc6 {[%clk
01:24:27]} {[%emt 00:02:22]} bxc6 {[%clk 01:27:54]} {[%emt 00:00:13]} 9. a4
{[%clk 01:18:48]} {[%emt 00:06:09]} Be7 {[%clk 01:20:41]} {[%emt 00:07:42]} 10.
a5 {[%clk 01:13:28]} {[%emt 00:05:51]} O-O {[%clk 01:17:44]} {[%emt 00:03:26]}
11. Be3 {[%clk 01:13:31]} {[%emt 00:00:28]} Nd7 {[%clk 01:10:13]} {[%emt
00:08:02]} 12. Na4 {[%clk 01:09:33]} {[%emt 00:04:27]} c5 {[%clk 01:05:21]}
{[%emt 00:05:22]} 13. Qd2 {[%clk 01:03:54]} {[%emt 00:06:09]} Qc7 {[%clk
01:02:28]} {[%emt 00:03:22]} 14. b3 {[%clk 01:02:55]} {[%emt 00:01:30]} Bf6
{[%clk 01:01:44]} {[%emt 00:01:14]} 15. Rad1 {[%clk 00:59:05]} {[%emt
00:04:20]} Rd8 {[%clk 00:56:40]} {[%emt 00:05:34]} 16. Be2 {[%clk 00:54:45]}
{[%emt 00:04:50]} Be7 {[%clk 00:53:51]} {[%emt 00:03:18]} 17. Nb2 {[%clk
00:50:50]} {[%emt 00:04:25]} Bb7 {[%clk 00:53:20]} {[%emt 00:01:02]} 18. f3
{[%clk 00:49:47]} {[%emt 00:01:33]} d5 {[%clk 00:52:08]} {[%emt 00:01:42]} 19.
exd5 {[%clk 00:47:28]} {[%emt 00:02:50]} exd5 {[%clk 00:52:19]} {[%emt
00:00:17]} 20. Bf4 {[%clk 00:44:33]} {[%emt 00:03:25]} Qc6 {[%clk 00:51:09]}
{[%emt 00:01:40]} 21. Bd3 {[%clk 00:43:31]} {[%emt 00:01:33]} Bf6 {[%clk
00:50:15]} {[%emt 00:01:24]} 22. Rb1 {[%clk 00:43:06]} {[%emt 00:00:54]} Re8
{[%clk 00:45:23]} {[%emt 00:05:23]} 23. Bf5 {[%clk 00:40:19]} {[%emt 00:03:17]}
Nf8 {[%clk 00:43:19]} {[%emt 00:02:34]} 24. Kh1 {[%clk 00:35:57]} {[%emt
00:04:52]} Bxb2 {[%clk 00:42:48]} {[%emt 00:01:01]} 25. c4 {[%clk 00:30:39]}
{[%emt 00:05:49]} Bf6 {[%clk 00:37:23]} {[%emt 00:05:54]} 26. b4 {[%clk
00:29:37]} {[%emt 00:01:33]} dxc4 {[%clk 00:29:26]} {[%emt 00:08:26]} 27. bxc5
{[%clk 00:27:48]} {[%emt 00:02:20]} Qxc5 {[%clk 00:27:28]} {[%emt 00:02:28]} 28.
Bxh7+ {[%clk 00:26:14]} {[%emt 00:02:03]} Nxh7 {[%clk 00:27:41]} {[%emt
00:00:16]} 29. Rxb7 {[%clk 00:26:31]} {[%emt 00:00:14]} c3 {[%clk 00:26:35]}
{[%emt 00:01:37]} 30. Qa2 {[%clk 00:26:14]} {[%emt 00:00:47]} Re7 {[%clk
00:26:40]} {[%emt 00:00:23]} 31. Rb6 {[%clk 00:25:06]} {[%emt 00:01:39]} Rae8
{[%clk 00:24:58]} {[%emt 00:02:12]} 32. h3 {[%clk 00:17:51]} {[%emt 00:07:45]}
Re1 {[%clk 00:23:03]} {[%emt 00:02:25]} 33. Rxe1 {[%clk 00:17:50]} {[%emt
00:00:32]} Rxe1+ {[%clk 00:23:22]} {[%emt 00:00:10]} 34. Kh2 {[%clk 00:18:17]}
{[%emt 00:00:03]} Be5 {[%clk 00:22:02]} {[%emt 00:01:49]} 35. Qa4 {[%clk
00:17:44]} {[%emt 00:01:04]} Bxf4+ {[%clk 00:19:42]} {[%emt 00:02:50]} 36. Qxf4
{[%clk 00:17:51]} {[%emt 00:00:24]} c2 {[%clk 00:15:45]} {[%emt 00:04:26]} 37.
Rb8+ {[%clk 00:17:37]} {[%emt 00:00:45]} Nf8 {[%clk 00:15:58]} {[%emt
00:00:17]} 38. Rb7 {[%clk 00:16:54]} {[%emt 00:01:12]} Qe5 {[%clk 00:14:51]}
{[%emt 00:01:36]} 0-1

[Event "Veteran-SM 65+ 2025"]
[Site "Uppsala, Sweden"]
[Date "2025.07.03"]
[Round "6.7"]
[White "Magnussen, Pal"]
[Black "Gromark, Per-Olof"]
[Result "1/2-1/2"]
[TimeControl "90 min for 40 move + 30 min with an increment of 30 sec starting move 1"]
[WhiteFideId "1711814"]
[BlackFideId "1722433"]
[WhiteElo "1954"]
[BlackElo "1915"]

1. e4 {[%clk 01:29:03]} {[%emt 00:01:56]} c5 {[%clk 01:27:51]} {[%emt
00:03:10]} 2. Nf3 {[%clk 01:29:14]} {[%emt 00:00:19]} Nc6 {[%clk 01:28:14]}
{[%emt 00:00:06]} 3. Bb5 {[%clk 01:29:25]} {[%emt 00:00:19]} Nf6 {[%clk
01:28:00]} {[%emt 00:00:44]} 4. e5 {[%clk 01:25:42]} {[%emt 00:04:14]} Nd5
{[%clk 01:28:05]} {[%emt 00:00:23]} 5. O-O {[%clk 01:25:12]} {[%emt 00:01:01]}
g6 {[%clk 01:27:55]} {[%emt 00:00:40]} 6. Re1 {[%clk 01:20:18]} {[%emt
00:05:25]} Bg7 {[%clk 01:27:51]} {[%emt 00:00:33]} 7. Nc3 {[%clk 01:17:05]}
{[%emt 00:03:43]} Nc7 {[%clk 01:27:59]} {[%emt 00:00:22]} 8. Bxc6 {[%clk
01:15:02]} {[%emt 00:02:33]} dxc6 {[%clk 01:27:41]} {[%emt 00:00:47]} 9. h3
{[%clk 01:14:02]} {[%emt 00:01:31]} O-O {[%clk 01:26:44]} {[%emt 00:01:27]} 10.
Ne4 {[%clk 01:10:21]} {[%emt 00:04:12]} b6 {[%clk 01:26:22]} {[%emt 00:00:52]}
11. d3 {[%clk 01:01:00]} {[%emt 00:09:51]} Ne6 {[%clk 01:25:24]} {[%emt
00:01:28]} 12. c3 {[%clk 00:55:28]} {[%emt 00:06:02]} Qd5 {[%clk 01:13:50]}
{[%emt 00:12:03]} 13. Bg5 {[%clk 00:40:26]} {[%emt 00:15:31]} Nxg5 {[%clk
01:09:35]} {[%emt 00:04:46]} 14. Nexg5 {[%clk 00:40:14]} {[%emt 00:00:42]} Bf5
{[%clk 01:04:33]} {[%emt 00:05:31]} 15. Re3 {[%clk 00:35:41]} {[%emt 00:05:04]}
Rad8 {[%clk 01:00:32]} {[%emt 00:04:32]} 16. c4 {[%clk 00:34:53]} {[%emt
00:01:18]} Qd7 {[%clk 01:00:16]} {[%emt 00:00:45]} 17. Qe1 {[%clk 00:34:08]}
{[%emt 00:01:15]} h6 {[%clk 00:57:17]} {[%emt 00:03:29]} 18. e6 {[%clk
00:33:16]} {[%emt 00:01:22]} Bxe6 {[%clk 00:57:32]} {[%emt 00:00:15]} 19. Nxe6
{[%clk 00:33:21]} {[%emt 00:00:25]} fxe6 {[%clk 00:57:55]} {[%emt 00:00:06]} 20.
Rxe6 {[%clk 00:33:26]} {[%emt 00:00:26]} Qxd3 {[%clk 00:51:28]} {[%emt
00:06:58]} 21. Rxe7 {[%clk 00:30:34]} {[%emt 00:03:22]} Qf5 {[%clk 00:44:58]}
{[%emt 00:06:59]} 22. Rxa7 {[%clk 00:24:59]} {[%emt 00:06:06]} Rfe8 {[%clk
00:43:22]} {[%emt 00:02:04]} 23. Re7 {[%clk 00:25:06]} {[%emt 00:00:24]} Rxe7
{[%clk 00:37:17]} {[%emt 00:06:35]} 24. Qxe7 {[%clk 00:25:16]} {[%emt
00:00:21]} Qd7 {[%clk 00:34:18]} {[%emt 00:03:28]} 25. Re1 {[%clk 00:22:44]}
{[%emt 00:03:02]} Qxe7 {[%clk 00:30:09]} {[%emt 00:04:38]} 26. Rxe7 {[%clk
00:23:08]} {[%emt 00:00:07]} Bxb2 {[%clk 00:30:24]} {[%emt 00:00:15]} 27. Rb7
{[%clk 00:21:29]} {[%emt 00:02:08]} Rd1+ {[%clk 00:27:01]} {[%emt 00:03:55]} 28.
Kh2 {[%clk 00:21:47]} {[%emt 00:00:11]} Rb1 {[%clk 00:26:29]} {[%emt 00:01:02]}
29. g3 {[%clk 00:21:07]} {[%emt 00:01:10]} Bd4 {[%clk 00:26:24]} {[%emt
00:00:35]} 30. Kg2 {[%clk 00:18:45]} {[%emt 00:02:53]} Rb2 {[%clk 00:25:16]}
{[%emt 00:01:38]} 31. Nxd4 {[%clk 00:18:41]} {[%emt 00:00:34]} cxd4 {[%emt
00:00:19]} 32. Rd7 {[%clk 00:18:53]} c5 {[%clk 00:25:41]} {[%emt 00:00:33]} 33.
Kf1 {[%clk 00:13:27]} {[%emt 00:05:56]} Rxa2 {[%clk 00:24:46]} {[%emt
00:01:26]} 34. Rd6 {[%clk 00:13:47]} {[%emt 00:00:10]} Kf7 {[%clk 00:25:04]}
{[%emt 00:00:10]} 35. Rxb6 {[%clk 00:14:02]} {[%emt 00:00:16]} Rc2 {[%clk
00:25:14]} {[%emt 00:00:20]} 36. Rc6 {[%clk 00:14:10]} {[%emt 00:00:23]} Rxc4
{[%clk 00:25:34]} {[%emt 00:00:09]} 37. Ke2 {[%clk 00:14:24]} {[%emt 00:00:16]}
Rc3 {[%clk 00:23:06]} {[%emt 00:02:58]} 38. Kd2 {[%clk 00:13:19]} {[%emt
00:01:35]} h5 {[%clk 00:10:58]} {[%emt 00:12:37]} 39. h4 {[%clk 00:12:12]}
{[%emt 00:01:38]} Rf3 {[%clk 00:05:00]} {[%emt 00:06:27]} 40. Ke2 {[%clk
00:11:19]} {[%emt 00:01:24]} Rc3 {[%clk 00:05:03]} {[%emt 00:00:27]} 41. Kd2
{[%emt 00:11:03]} 1/2-1/2

[Event "Veteran-SM 65+ 2025"]
[Site "Uppsala, Sweden"]
[Date "2025.07.03"]
[Round "6.8"]
[White "Malmdin, Nils-Ake"]
[Black "Bytar, Peter"]
[Result "1-0"]
[TimeControl "90 min for 40 move + 30 min with an increment of 30 sec starting move 1"]
[WhiteTitle "FM"]
[WhiteFideId "1701584"]
[BlackFideId "1731530"]
[WhiteElo "2103"]
[BlackElo "1910"]

1. d4 {[%clk 01:30:31]} {[%emt 00:00:28]} g6 {[%clk 01:29:16]} {[%emt
00:01:46]} 2. c4 {[%clk 01:30:14]} {[%emt 00:00:45]} Bg7 {[%clk 01:29:27]}
{[%emt 00:00:20]} 3. Nc3 {[%clk 01:30:26]} {[%emt 00:00:16]} Nf6 {[%clk
01:29:28]} {[%emt 00:00:31]} 4. e4 {[%clk 01:30:41]} {[%emt 00:00:14]} d6
{[%clk 01:29:55]} {[%emt 00:00:05]} 5. f4 {[%clk 01:30:51]} {[%emt 00:00:18]}
O-O {[%clk 01:29:20]} {[%emt 00:01:06]} 6. Nf3 {[%clk 01:30:53]} {[%emt
00:00:27]} c5 {[%clk 01:20:01]} {[%emt 00:09:49]} 7. d5 {[%clk 01:30:45]}
{[%emt 00:00:38]} e6 {[%clk 01:09:54]} {[%emt 00:10:38]} 8. dxe6 {[%clk
01:27:14]} {[%emt 00:04:01]} Bxe6 {[%clk 01:09:14]} {[%emt 00:01:10]} 9. Bd3
{[%clk 01:27:31]} {[%emt 00:00:12]} Nc6 {[%clk 01:06:47]} {[%emt 00:02:59]} 10.
O-O {[%clk 01:26:21]} {[%emt 00:01:37]} a6 {[%clk 00:52:56]} {[%emt 00:14:23]}
11. f5 {[%clk 01:02:09]} {[%emt 00:24:41]} Bc8 {[%clk 00:37:00]} {[%emt
00:16:27]} 12. Bg5 {[%clk 00:51:39]} {[%emt 00:10:59]} Qd7 {[%clk 00:32:57]}
{[%emt 00:04:34]} 13. Qd2 {[%clk 00:38:09]} {[%emt 00:14:00]} Rb8 {[%clk
00:22:07]} {[%emt 00:11:20]} 14. Rad1 {[%clk 00:34:43]} {[%emt 00:03:54]} Ne7
{[%clk 00:11:53]} {[%emt 00:10:46]} 15. Bc2 {[%clk 00:30:38]} {[%emt 00:04:34]}
Rd8 {[%clk 00:12:04]} {[%emt 00:00:20]} 16. e5 {[%clk 00:23:41]} {[%emt
00:07:26]} dxe5 {[%clk 00:10:35]} {[%emt 00:02:01]} 17. Qf2 {[%clk 00:23:25]}
{[%emt 00:00:44]} Qe8 {[%clk 00:04:22]} {[%emt 00:06:44]} 18. Rxd8 {[%clk
00:21:30]} {[%emt 00:02:25]} Qxd8 {[%clk 00:04:50]} {[%emt 00:00:02]} 19. fxg6
{[%clk 00:20:33]} {[%emt 00:01:25]} fxg6 {[%clk 00:01:44]} {[%emt 00:03:38]} 20.
Qh4 {[%clk 00:20:17]} {[%emt 00:00:44]} Nf5 21. Bxf5 {[%clk 00:20:23]} Bxf5
{[%clk 00:01:43]} {[%emt 00:00:05]} 22. Nd5 {[%clk 00:20:30]} {[%emt 00:00:22]}
1-0